Cogmind - Beta 16 @@@ ROGUE MODE // 2025.10.24 @ 22:00:35 Player: kim.jet.wav Result: Destroyed by D-53 Grenadier with Mini Grenade Launcher Performance ------------- Evolutions (0) 0 Regions Visited (2) 400 Robots Destroyed (16) 80 Value Destroyed (271) 271 Prototype IDs (0) 0 Alien Tech Used (0) 0 Bonus (0) 0 TOTAL SCORE: 751 Bonus ------- None Cogmind --------- Core Integrity 0/250 Matter 300/300 Energy 160/160 System Corruption 0% Temperature Cool (0) Movement Walking (120) Location -10/Mines Parts ------- > --- POWER (1) -------- Light Nuclear Core > --- PROPULSION (2) --- Aluminum Leg Aluminum Leg > --- UTILITY (2) ------ Small Storage Unit Seismic Detector > --- WEAPON (2) ------- Particle Gun > --- INVENTORY (8) ---- Light Ion Engine Light Nuclear Core Aluminum Leg Improved Heat Sink Visual Processing Unit Sensor Array Targeting Computer Small Laser Peak State ------------ > --- POWER ------------ Light Nuclear Core > --- PROPULSION ------- Aluminum Leg Aluminum Leg > --- UTILITY ---------- Small Storage Unit Seismic Detector > --- WEAPON ----------- Medium Laser Particle Gun > --- INVENTORY -------- Ion Engine Light Ion Engine Light Nuclear Core Aluminum Leg Improved Heat Sink Targeting Computer Small Laser Small Laser [Rating: 11] Favorites ----------- Power Light Nuclear Core Engine Ion Engine Power Core Light Nuclear Core Propulsion Aluminum Leg Leg Aluminum Leg Utility Small Storage Unit Device Seismic Detector Storage Small Storage Unit Weapon Medium Laser Energy Gun Medium Laser Build | -11 -10 -10 ------- Run | Yrd Mat Min Slots Evolved . | . . . Power . | . . . Propulsion . | . . . Utility . | . . . Weapon . | . . . Parts Attached 15 | 7 7 1 Power 4 | 1 2 1 Engine 2 | 1 1 . Core 2 | . 1 1 Reactor . | . . . Propulsion 5 | 2 3 . Treads . | . . . Leg 5 | 2 3 . Wheel . | . . . Hover . | . . . Flight . | . . . Utility 2 | 2 . . Device 1 | 1 . . Storage 1 | 1 . . Processor . | . . . Hackware . | . . . Protection . | . . . Artifact . | . . . Weapon 4 | 2 2 . Energy Gun 4 | 2 2 . Energy Cannon . | . . . Ballistic Gun . | . . . Ballistic Cannon . | . . . Launcher . | . . . Special Weapon . | . . . Impact Weapon . | . . . Slashing Weapon . | . . . Piercing Weapon . | . . . Special Melee Weapon . | . . . Unidentified Prototypes . | . . . Parts Lost 2 | . 1 1 Power . | . . . Propulsion . | . . . Utility . | . . . Weapon 2 | . 1 1 Highest Loss Streak 1 | . 1 1 To Critical Strikes . | . . . Average Backups 6 | 1 5 8 Power 1 | . 1 2 Propulsion . | . . 1 Utility 2 | . 1 4 Weapon 1 | . 1 1 Tool/Special . | . . . Unused Backups 5 | . . 5 Power . | . . . Propulsion . | . . . Utility 4 | . . 4 Weapon 1 | . . 1 Tool/Special . | . . . Average Slot Usage (%) 100 | . 100 100 Engine 5 | . 8 . Core 8 | . 5 14 Leg 28 | . 28 28 Device 14 | . 14 14 Storage 14 | . 14 14 Energy Gun 28 | . 28 28 Peak Build Rating 11 | 7 11 11 Average Rating 9 | 5 8 11 On Entrance 6 | . 7 11 Avg Prop Armor Cover (%) 9 | . 9 . Naked Turns . | . . . Heaviest Build 16 | 15 16 16 Greatest Support 20 | 20 20 20 Greatest Overweight (x) 4 | 4 1 . Average Overweight (x) . | . . . Largest Inventory Capacity 8 | 8 8 8 Average Capacity 7 | 7 8 8 Most Carried 8 | 2 8 8 Average Carried 6 | 1 5 8 Final Capacity 8 | 8 8 8 Final Carried 8 | 2 8 8 Class Distribution -------------------- 58% | Scavenger-Mutant 41% | Mutant Dominant Class ---------------- Mutant | -10/Materials Scavenger-Mutant | -10/Mines Resources | -11 -10 -10 ----------- Run | Yrd Mat Min Matter Collected 345 | 235 100 10 Remotely . | . . . Salvage Created 400 | 24 330 46 Parts 36 | 3 26 7 Haulers Intercepted . | . . . Recyclers Shooed 3 | 1 2 . Parts Field Recycled . | . . . Retrieved Matter . | . . . Parts Self-Destructed . | . . . Prevented . | . . . Parts Restored . | . . . Kills | -11 -10 -10 ------- Run | Yrd Mat Min Combat Hostiles Destroyed 13 | . 10 3 Guns 13 | . 10 3 Classes Destroyed 4 | 1 3 . Worker 2 | . 2 . Tunneler 1 | 1 . . Swarmer 9 | . 6 3 Grunt 4 | . 4 . Best Kill Streak 5 | 1 5 3 Combat Bots Only 3 | . 3 3 Max Kills in Single Turn 2 | 1 2 1 Gunslinging 1 | . 1 . Exploded . | . . . Melee . | . . . Uniques/NPCs Destroyed . | . . . Combat | -11 -10 -10 -------- Run | Yrd Mat Min Hostile Shots Fired 77 | . 61 16 Missed 18 | . 12 6 Hits 59 | . 49 10 Projectile 59 | . 49 10 AOE 3 | . . 3 Damage Taken 697 | . 529 168 Core 250 | . 174 76 Absorbed by Shields . | . . . Core Remaining (%) 100 | 100 . . Volleys Fired 34 | 4 26 4 Largest 2 | 2 2 2 Hottest 115 | 90 90 115 Shots Fired 68 | 8 52 8 Gun 68 | 8 52 8 Cannon . | . . . Launcher . | . . . Special . | . . . Kinetic . | . . . Thermal 60 | 4 48 8 Explosive . | . . . Electromagnetic 8 | 4 4 . Robot Hit Streak 6 | 5 6 1 Robot Miss Streak 6 | 1 6 3 Penetration Max . | . . . Secondary Targets 3 | . 3 . Max Gunslinging Chain 1 | . 1 . Shots Hit Robots 38 | 6 30 2 Core Hits 24 | 2 19 3 Critical Kills . | . . . Critical Parts Destroyed . | . . . Critical Strikes . | . . . Melee Attacks . | . . . Impact . | . . . Slashing . | . . . Piercing . | . . . Sneak Attacks . | . . . Combat Hostiles . | . . . Follow-up Attacks . | . . . Damage Inflicted 527 | 88 400 39 Guns 527 | 88 400 39 Cannons . | . . . Explosions . | . . . Melee . | . . . Ramming . | . . . Kinetic . | . . . Thermal 449 | 50 360 39 Explosive . | . . . Electromagnetic 78 | 38 40 . Impact . | . . . Slashing . | . . . Piercing . | . . . Highest Corruption . | . . . Average Corruption . | . . . Corruption Purged . | . . . Corruption Blocked . | . . . Overload Shots . | . . . Overflow Damage . | . . . Projectiles . | . . . Explosions . | . . . Melee . | . . . Knockbacks . | . . . Impact . | . . . Kinetic . | . . . Secondary . | . . . Self-Inflicted Damage . | . . . Shots . | . . . Rammed . | . . . Targets Rammed . | . . . Kicked . | . . . Crushed . | . . . Highest Temperature 385 | 120 385 240 Average Temperature 127 | 61 138 123 Received Heat Transfer 186 | . 186 . Siege Activations . | . . . Martial Activations . | . . . Shielding Activations . | . . . Robots Disrupted . | . . . Combat Hostiles . | . . . Robots Corrupted . | . . . Combat Hostiles . | . . . Parts Fried . | . . . Impact Corruptions . | . . . Robots Melted . | . . . Combat Hostiles . | . . . Parts Melted 2 | . 2 . Heat Transferred 1214 | 148 955 111 Parts Sabotaged . | . . . Parts Stolen . | . . . Parts Stripped . | . . . Power Chain Reactions . | . . . Alert | -11 -10 -10 ------- Run | Yrd Mat Min Maximum Alert Level . | . . . Low Security (%) 100 | 100 100 100 Level 1 . | . . . Level 2 . | . . . Level 3 . | . . . Level 4 . | . . . Level 5 . | . . . High Security . | . . . Max Security . | . . . Peak Influence 170 | 5 170 112 Initial 27 | . . 27 Average 63 | . 88 36 Influence Increases 415 | 5 325 85 Destroy 0b10 Robot/C 260 | . 200 60 Destroy 0b10 Robot/NC 15 | 5 10 . Destroy Leader 50 | . 40 10 Successful Hack 15 | . 15 . Disable Machine 15 | . . 15 Lose Combat Pursuer 60 | . 60 . Influence Decreases 415 | 5 255 155 Entered New Map 43 | . . 43 Time Decay 372 | 5 255 112 Squads Dispatched . | . . . Investigation . | . . . Extermination . | . . . Reinforcement . | . . . Assault . | . . . Garrison . | . . . Intercept . | . . . Searches Triggered . | . . . Construction Impeded . | . . . Haulers Reinforced . | . . . Active Scanning Responses . | . . . Cargo Convoy Interrupts . | . . . Stealth | -11 -10 -10 --------- Run | Yrd Mat Min Distress Signals 5 | . 4 1 Communications Jammed . | . . . Distress Signals . | . . . Times Spotted 25 | . 17 8 Peak Tracking Total 5 | . 5 3 Tactical Retreats 2 | . 2 . Traps | -11 -10 -10 ------- Run | Yrd Mat Min Traps Triggered . | . . . Indirectly . | . . . Trap Hack Attempts . | . . . Triggered . | . . . Disarmed . | . . . Reprogrammed . | . . . Reused . | . . . Traps Extracted . | . . . Installed . | . . . Triggered . | . . . Machines | -11 -10 -10 ---------- Run | Yrd Mat Min Machines Disabled 1 | . . 1 Max in Single Turn 1 | . . 1 Machines Repaired . | . . . Machines Dismantled . | . . . Machines Sabotaged . | . . . Overloaded Fab Kills . | . . . Hacking | -11 -10 -10 --------- Run | Yrd Mat Min Machines Accessed 3 | . 3 . Terminals 3 | . 3 . Fabricators . | . . . Repair Stations . | . . . Recycling Units . | . . . Scanalyzers . | . . . Garrison Access . | . . . Total Hacks 5 | . 5 . Successful 3 | . 3 . Failed 2 | . 2 . Catastrophic . | . . . Database Lockouts . | . . . Manual 3 | . 3 . Terminals 5 | . 5 . Fabricators . | . . . Repair Stations . | . . . Recycling Units . | . . . Scanalyzers . | . . . Garrison Access . | . . . Terminal Hacks 3 | . 3 . Branch Access Points 2 | . 2 . Zone Layout 1 | . 1 . Fabricator Hacks . | . . . Repair Station Hacks . | . . . Recycling Unit Hacks . | . . . Scanalyzer . | . . . Garrison Access Hacks . | . . . Unauthorized Hacks . | . . . Terminals . | . . . Fabricators . | . . . Repair Stations . | . . . Recycling Units . | . . . Scanalyzers . | . . . Garrison Access . | . . . Data Cores Recovered . | . . . Used . | . . . Hacking Detections 1 | . 1 . Full Trace Events . | . . . Feedback Events . | . . . Feedback Blocked . | . . . Robot Schematics Acquired . | . . . Robots Built . | . . . Authchips . | . . . Time . | . . . Total Robot Build Rating . | . . . Part Schematics Acquired . | . . . Parts Built . | . . . Authchips . | . . . Time . | . . . Total Part Build Rating . | . . . Part Studies Acquired . | . . . Parts Repaired . | . . . Time . | . . . Parts Recycled . | . . . Recycled Matter . | . . . Retrieved Matter . | . . . Retrieved Components . | . . . Parts Scanalyzed . | . . . Part Schematics Acquired . | . . . Parts Damaged . | . . . Bothacking | -11 -10 -10 ------------ Run | Yrd Mat Min Used RIF Installer . | . . . Robots Hacked . | . . . Non-combat . | . . . Combat . | . . . Robot Hacks Applied . | . . . Relay Couplers Released . | . . . Fabnet Peak Effective % . | . . . Robots Rewired . | . . . Allies Hacked . | . . . Hacks Repelled . | . . . Allies | -11 -10 -10 -------- Run | Yrd Mat Min Total Allies . | . . . Largest Group . | . . . Highest-Rated Group . | . . . Highest-Rated Ally . | . . . Total Orders . | . . . Ally Attacks . | . . . Total Damage . | . . . Kills . | . . . Allies Corrupted . | . . . Allies Melted . | . . . Intel | -11 -10 -10 ------- Run | Yrd Mat Min Active Infowar (turns) 973 | 6 607 360 Seismic 973 | 6 607 360 Robot Analysis Total . | . . . Derelict Logs Recovered 1 | . . 1 Drone Launches . | . . . Drone Recoveries . | . . . Exploration | -11 -10 -10 ------------- Run | Yrd Mat Min Turns Passed 1051 | 84 607 360 Spaces Moved 736 | 46 404 286 Core 15 | 15 . . Treads . | . . . Legs 721 | 31 404 286 Wheels . | . . . Hover . | . . . Flight . | . . . Fastest Speed 50 | 50 120 120 Average Speed 120 | 130 120 120 Slowest Speed 250 | 250 190 120 Overloaded Moves . | . . . Propulsion Burnouts . | . . . Robots Hopped . | . . . Potential Cave-ins . | . . . Cave-ins Triggered . | . . . Exploration Rate (%) 39 | 3 60 54 Regions Visited 2 Branch Regions 1 Pre-discovered Areas . | . . . Known Exits Taken 1 | . 1 . Unknown Exits Taken 1 | 1 . . Scrap Searched . | . . . Spaces Dug . | . . . Terrain Destroyed . | . . . Melee . | . . . Projectile . | . . . AOE . | . . . Terrain Rammed . | . . . Walls Destroyed . | . . . Machines Disabled . | . . . Actions | -11 -10 -10 --------- Run | Yrd Mat Min Total 825 | 59 472 294 Wait 27 | . 24 3 Move 734 | 45 403 286 Hop . | . . . Pick Up 11 | 3 8 . Fast Attach 6 | 6 . . Attach 2 | 1 1 . Detach . | . . . Swap 7 | . 6 1 Drop 4 | . 4 . Fire 34 | 4 26 4 Melee . | . . . Ram . | . . . Kick . | . . . Crush . | . . . Escape Stasis . | . . . Rewire . | . . . Trap . | . . . Miscellaneous . | . . . Route ------- -11/Scrapyard -10/Materials (discovered 4 exits: [*Mat x3] / *Min) -10/Mines History --------- Turn | Location | Event 22 | -11/Scrapyard | Discovered new exit (range 15) 85 | -11/Scrapyard | Entered Materials 126 | -10/Materials | Identified exit to Mines 206 | -10/Materials | Discovered new exit (range 15) 305 | -10/Materials | Build established: Mutant 376 | -10/Materials | Core integrity fell below 50% 511 | -10/Materials | Discovered new exit (range 12) 600 | -10/Materials | Discovered new exit (range 10) 692 | -10/Materials | Entered Mines 731 | -10/Mines | Build established: Scavenger-Mutant 801 | -10/Mines | Learned Materials interactive machine intel 1026 | -10/Mines | Assembled infested the area 1051 | -10/Mines | Core integrity fell below 20% 1052 | -10/Mines | Destroyed by D-53 Grenadier with Mini Grenade Launcher Last Messages --------------- 00571_ Acquired Visual Processing Unit. 00580_ Connecting with Terminal... >>Layout(Zone) Retrieving Zone 3J layout... Downloaded map data. 00600_ EXIT=FOUND LOCATION=MINES GOAL=ESCAPE Something is scanning the area. 00695_ Seismic Survey Station disabled. 00695_ S-10 Pest destroyed. 00712_ Acquired 10 matter. 00801_ Acquired derelict log, extracted data. Data stored: Materials interactive machine intel. 00898_ K-01 Serf collects debris. 01026_ ALERT: Infestation in the mines, dispatching Demolisher response squad. 01037_ C-45 Heavy ARC bursts open, deploying its payload. 01037_ D-53 Grenadier unfolds itself. 01052_ Med. Laser destroyed. Map ----- +----------------------------------------------------+ | #??????????# #?????????###### ##????????? | | #??????????# #??????????????# #?????????? | | #??????????# #??????????????# #?????????? | | #??????????# #??????????????# #?????????? | | #??????????# #??????????????# #?????????? | | #??????????# #??????????????# #?????????? | | #??????????# #??????????????# #?????????? | | ##########?# #??????????????# #?????????? | | #?# #??????????????# #?????????? | | ### ##?????????????# #?????????? | | #### ### ##????######### #?????????? | | ???# #?# ##???# #?????????? | | ???# #?##### ##??# #########?????????? | | ???# #?????# #??# #????####?????????? | | ???# #????## #??# ###### ##????????? | | ???# #???## ##??# ##???????? | | ???# ##### #####???# ##### ####????? | | ???# ##???????# #???## ##???? | | ???# ### ##????????# #????## #???? | | #### #?# ##?????????# #?????## ##??? | | #?## #??????????# #??????# #??? | | ######??# ??????????# #?????## #??? | | ????????# ##?????????# #?##### """ ##?? | | ????????# #??????????? ?## """ ##? | | ????????# #?????# ## ## """ #? | | ????????# #???# sss @ # #? | | ????????# #??# #### #### #? | | ????????? ??????????????# #?## #? | | ????????? ??????????????## #?# ##? | | ????????? ??????????????? #?## ##?? | | ????????? ??????????????? #??# ##??? | | ????????? ???????????????# #??# #???? | | ????????? ??????????????? #??# #???? | | ????????? ???????????????### ##### #???? | | ?????????????????????????####dd #???? | | ?????????????????????????# #######???? | | ?????????????????????????# ##?????????? | | ?????????????????????????# ###??????????? | | ?????????????????????????# #????????????? | | ?????????????????????????# #????????????? | | ?????????????????????????# #????????????? | | ?????????????????????????# #????????????? | | ?????????????????????????# #????????????? | | ?????????????????????????# #????????????? | | ?????????????????????????# #????????????? | | ?????????????????????????# #????????????? | | ?????????????????????????# #????????????? | | ?????????????????????????# ?????????????? | | ?????????????????????????# ?????????????? | | ?????????????????????????# ?????????????? | +----------------------------------------------------+ Best States ------------- Heat Dissipation 25 Energy Generation 14 Energy Capacity 250 Matter Stores 300 Matter Capacity 300 Sight Range 16 Terrain Scan Density 10 Evasion (%) 55 Item Schematics ----------------- None Robot Schematics ------------------ None Fabricated ------------ Nothing Repaired ---------- Nothing Studied --------- None Alien Tech Used ----------------- None Achievements -------------- None Challenges ------------ None Game ------ Seed AntigravWeaponsCharge Manual? 0 Play Time 00:16:44 Cumulative 44.2 hours Start 2025.10.24 @ 20:41:14 End 2025.10.24 @ 22:00:35 Sessions 1 Manual Loads 0 Difficulty Rogue Special Mode None Game No. 207 Rogue 207 Adventurer 0 Explorer 0 Win Type - Total 0 Types 0/0/0/0/0/0/0/0/0/0 Lore% 24 Gallery% 20 Achievement% 12 Wizard Run 0 Options --------- Layout 0 ASCII 1 Keyboard 1 Movement Numpad Keybinds 1 Fullscreen 1 Font 18/X11 Map View 76x50 Zoom Use 0% Tactical HUD 1 Map Filters NONE Filters NONE Steam 1 RUN: 66a6d92d-4754-42bf-ad87-b1042f7b3cbb